Cogmind - Beta 11 X8 @@@ ROGUE MODE // 2021.10.26 @ 13:19:02 Player: lsend Result: Destroyed by MAIN.C with Omega Cannon Performance ------------- Evolutions (9) 4500 Regions Visited (26) 5200 Robots Destroyed (29) 145 Value Destroyed (953) 953 Prototype IDs (58) 1160 Alien Tech Used (2) 400 Bonus (23938) 23938 TOTAL SCORE: 36296 Bonus ------- Pacifist 270 High Alert Combat Kills 75 Follower Combat Kills 1293 Entered DSFs 500 Aligned with FarCom 300 Met Warlord at Base 500 MAIN.C Attacked Warlord 500 Found Hidden Lab 3000 Used Core Reset Matrix 3000 Met Warlord at Research 2000 Destroyed MAIN.C Guards 500 Met MAIN.C 5000 Destroyed MAIN.C Shell 5000 Met Warlord at Command 2000 Cogmind --------- Core Integrity 0/1600 Matter 300/300 Energy 98/100 System Corruption 9% Temperature Cool (0) Movement Core (50) Location -1/Command Parts ------- > --- POWER (2) -------- (None) > --- PROPULSION (7) --- (None) > --- UTILITY (14) ----- Advanced Salvage Targeting Computer Advanced Melee Analysis Suite > --- WEAPON (2) ------- (None) > --- INVENTORY (5) ---- Neutrino Core Transdimensional Reconstructor Peak State ------------ > --- POWER ------------ Micro Nuclear Core Compact Particle Reactor > --- PROPULSION ------- Impulse Thruster Q-thruster Q-thruster Electron Diverter Impulse Thruster Array Improved Q-thruster > --- UTILITY ---------- Experimental Heat Sink Experimental Energy Well Experimental Signal Interpreter Advanced Melee Analysis Suite Experimental Phase Shifter Improved Utility Shielding Hardened Medium Armor Plating Experimental Focal Shield AEGIS Remote Shield Improved Hacking Suite Improved Hacking Suite Deep Network Scanner Ghost Barrier > --- WEAPON ----------- Centrium Greatsword > --- INVENTORY -------- Neutrino Core Transdimensional Reconstructor Core Regenerator Vortex Lance Vortex Lance [Rating: 185] Favorites ----------- Power Micro Nuclear Core Engine Light Ion Engine Power Core Micro Nuclear Core Reactor Light Antimatter Reactor Propulsion VTOL Module Treads Light Treads Flight Unit VTOL Module Utility Improved Hacking Suite Device Experimental Focal Shield Storage Experimental Energy Well Processor Advanced Melee Analysis Suite Hackware Improved Hacking Suite Protection Improved Propulsion Shielding Weapon Power Sword Ballistic Gun High-powered Shotgun Launcher Long-range Missile Launcher Impact Weapon Mace Slashing Weapon Power Sword Piercing Weapon Vortex Lance Build | -11 -10 -10 -10 -9 -8 -8 -7 -7 -6 -6 -5 -5 -5 -4 -4 -4 -4 -4 -4 -3 -3 -3 -3 -2 -1 -1 ------- Run | Scr Mat Min Exi Min Mat Sto Fac DSF Fac Ext Fac Upp Upp Fac Was Fac Upp Upp War Pro Res Arm Lab Res Acc Com Slots Evolved 18 | . . . . . 4 . 2 . 2 . 2 . . 2 . . . . . . 2 . . 2 2 . Power 1 | . . . . . . . . . . . 1 . . . . . . . . . . . . . . . Propulsion 5 | . . . . . 2 . 1 . 1 . . . . . . . . . . . . . . 1 . . Utility 12 | . . . . . 2 . 1 . 1 . 1 . . 2 . . . . . . 2 . . 1 2 . Weapon . | . . . . . . . . . . . . . . . . . . . . . . . . . . . Parts Attached 123 | 2 2 1 . . 5 13 1 4 6 2 6 3 . 2 7 8 1 . 12 1 15 10 6 7 2 7 Power 13 | . . . . . . 4 . 1 1 . 1 . . . 1 1 . . . . 2 1 . 1 . . Engine 2 | . . . . . . 2 . . . . . . . . . . . . . . . . . . . . Core 8 | . . . . . . 2 . 1 1 . 1 . . . 1 . . . . . 2 . . . . . Reactor 3 | . . . . . . . . . . . . . . . . 1 . . . . . 1 . 1 . . Propulsion 34 | 2 . . . . 2 6 . 1 1 . . . . 1 2 2 . . 1 1 4 5 2 2 . 2 Treads 2 | 2 . . . . . . . . . . . . . . . . . . . . . . . . . . Leg . | . . . . . . . . . . . . . . . . . . . . . . . . . . . Wheel . | . . . . . . . . . . . . . . . . . . . . . . . . . . . Hover . | . . . . . . . . . . . . . . . . . . . . . . . . . . . Flight 32 | . . . . . 2 6 . 1 1 . . . . 1 2 2 . . 1 1 4 5 2 2 . 2 Utility 58 | . 1 1 . . 3 2 1 2 2 2 1 1 . 1 3 4 1 . 11 . 7 4 4 3 2 2 Device 20 | . 1 . . . 2 . . . . 1 . . . 1 . . 1 . 4 . 1 3 2 2 1 1 Storage 3 | . . . . . . . . 1 . . . . . . . . . . 1 . 1 . . . . . Processor 7 | . . . . . 1 1 1 . . . . . . . . 2 . . . . 1 . . . . 1 Hackware 13 | . . . . . . . . . 2 . . . . . . 2 . . 4 . 3 . 1 1 . . Protection 15 | . . 1 . . . 1 . 1 . 1 1 1 . . 3 . . . 2 . 1 1 1 . 1 . Artifact . | . . . . . . . . . . . . . . . . . . . . . . . . . . . Weapon 18 | . 1 . . . . 1 . . 2 . 4 2 . . 1 1 . . . . 2 . . 1 . 3 Energy Gun . | . . . . . . . . . . . . . . . . . . . . . . . . . . . Energy Cannon . | . . . . . . . . . . . . . . . . . . . . . . . . . . . Ballistic Gun 1 | . . . . . . 1 . . . . . . . . . . . . . . . . . . . . Ballistic Cannon . | . . . . . . . . . . . . . . . . . . . . . . . . . . . Launcher 6 | . . . . . . . . . 1 . 2 1 . . 1 . . . . . 1 . . . . . Special Weapon . | . . . . . . . . . . . . . . . . . . . . . . . . . . . Impact Weapon 1 | . 1 . . . . . . . . . . . . . . . . . . . . . . . . . Slashing Weapon 8 | . . . . . . . . . 1 . 2 1 . . . 1 . . . . 1 . . 1 . 1 Piercing Weapon 2 | . . . . . . . . . . . . . . . . . . . . . . . . . . 2 Special Melee Weapon . | . . . . . . . . . . . . . . . . . . . . . . . . . . . Unidentified Prototypes 21 | . . . . . 2 1 . . . 1 . . . . . . . . 4 . 3 1 4 4 . 1 Parts Lost 49 | . . . . 3 1 1 . 1 2 3 5 5 . . 1 . . . . . 5 . . . . 22 Power 5 | . . . . . . . . 1 1 . . 1 . . . . . . . . 1 . . . . 1 Propulsion 21 | . . . . 2 1 1 . . . 1 4 1 . . 1 . . . . . 2 . . . . 8 Utility 17 | . . . . 1 . . . . . 2 . 2 . . . . . . . . 2 . . . . 10 Weapon 6 | . . . . . . . . . 1 . 1 1 . . . . . . . . . . . . . 3 Highest Loss Streak 15 | . . . . 3 4 1 . 1 2 2 3 4 . . 1 . . . . . 2 . . . . 15 Average Slot Usage (%) 78 | . 51 69 71 71 30 79 77 80 93 92 61 36 17 24 43 77 89 89 91 94 91 90 93 93 84 70 Core 3 | . . . . . . 3 7 7 6 6 9 2 . . 4 5 5 5 5 5 4 4 4 4 4 3 Reactor 1 | . . . . . . . . . . . . . . . . 1 5 5 5 5 4 1 4 4 4 3 Treads 4 | . 28 28 28 28 . . . . . . . . . . . . . . . . . . . . . . Flight 20 | . . . . . 9 30 30 33 38 39 18 2 . 3 9 17 21 21 24 26 22 22 28 26 24 20 Device 7 | . 8 14 14 14 1 . . . . . 5 4 . 5 5 5 10 10 12 15 11 12 4 12 12 9 Storage 2 | . . . . . . . . . 6 6 5 3 . . . . . . . . 2 4 4 4 4 3 Processor 7 | . . . . . 1 15 16 15 12 6 5 5 5 5 5 8 10 10 10 10 9 9 9 8 8 10 Hackware 9 | . . . . . . . . . 6 9 5 5 5 5 5 13 15 15 9 5 16 19 21 17 16 12 Protection 10 | . . 12 14 14 9 14 15 15 13 15 6 6 . . 8 15 10 10 12 15 9 5 4 8 8 2 Impact Weapon 3 | . 14 14 14 14 9 9 7 7 1 . . . . . . . . . . . . . . . . . Slashing Weapon 4 | . . . . . . . . . 4 6 1 1 5 5 5 8 10 10 10 10 8 9 9 6 4 3 Naked Turns . | . . . . . . . . . . . . . . . . . . . . . . . . . . . Heaviest Build 54 | . 3 4 4 4 4 13 10 15 18 20 29 15 3 3 19 34 33 33 39 39 39 40 40 40 39 54 Greatest Support 55 | 3 3 3 3 3 4 17 17 21 21 21 33 20 3 7 19 41 41 41 49 43 46 47 46 55 55 55 Greatest Overweight (x) 2 | . . 1 1 1 . . . 1 . . . . . . . . . . . . . . . . . 2 Average Overweight (x) . | . . . 1 . . . . . . . . . . . . . . . . . . . . . . . Largest Inventory Capacity 8 | 5 5 5 5 5 5 5 5 8 8 8 8 8 5 5 5 5 5 5 5 5 5 5 5 5 5 5 Average Capacity 5 | 5 5 5 5 5 5 5 5 5 8 8 8 6 5 5 5 5 5 5 5 5 5 5 5 5 5 5 Most Carried 8 | 1 2 3 4 4 4 5 5 8 8 7 8 8 5 5 5 5 5 5 5 5 5 5 5 5 5 5 Average Carried 4 | . 1 2 3 4 3 4 5 4 7 7 7 6 5 5 5 4 5 5 4 5 4 5 2 5 5 4 Final Capacity 8 | 5 5 5 5 5 5 5 5 8 8 8 8 5 5 5 5 5 5 5 5 5 5 5 5 5 5 5 Final Carried 8 | 1 2 3 4 4 3 5 5 8 7 7 8 5 5 5 5 5 5 5 5 5 5 5 5 5 5 2 Class Distribution -------------------- 22% | Mutant 19% | Sprinter 16% | Hacker-Sprinter 12% | Scavenger-Sprinter 12% | Wizard-Sprinter 5% | Scavenger-Mutant 4% | Hacker-Scout Dominant Class ---------------- Mutant | -10/Materials Mutant | -10/Mines Mutant | -10/Exiles Assassin | -9/Mines Mutant | -8/Materials Commander-Sprinter | -8/Storage Sprinter | -7/Factory Sprinter | -7/DSF Sprinter | -6/Factory Sprinter | -6/Extension Sprinter | -5/Factory Mutant | -5/Upper Caves Mutant | -5/Upper Caves Mutant | -4/Factory Scavenger-Mutant | -4/Waste Scavenger-Sprinter | -4/Factory Scavenger-Sprinter | -4/Upper Caves Scavenger-Sprinter | -4/Upper Caves Scavenger-Sprinter | -4/Warlord Scavenger-Sprinter | -3/Proximity Caves Hacker-Sprinter | -3/Research Hacker-Sprinter | -3/Armory Wizard-Sprinter | -3/Lab Wizard-Sprinter | -2/Research Wizard-Sprinter | -1/Access Hacker-Sprinter | -1/Command Resources | -11 -10 -10 -10 -9 -8 -8 -7 -7 -6 -6 -5 -5 -5 -4 -4 -4 -4 -4 -4 -3 -3 -3 -3 -2 -1 -1 ----------- Run | Scr Mat Min Exi Min Mat Sto Fac DSF Fac Ext Fac Upp Upp Fac Was Fac Upp Upp War Pro Res Arm Lab Res Acc Com Matter Collected 1635 | 220 . 30 . . . 170 . . 34 101 18 52 . . 260 80 6 24 12 80 35 215 . 208 . 90 Remotely . | . . . . . . . . . . . . . . . . . . . . . . . . . . . Salvage Created 909 | . . . . . . 47 . . 34 65 81 106 . . . 211 . . . . 59 . . 294 . 12 Parts 31 | . . . . . . 3 . . 1 1 5 4 . . . 5 . . . . 6 . . 5 . 1 Haulers Intercepted 6 | . . . . . . 1 . . . . . . . . . 2 . . . . . . . 3 . . Recyclers Shooed . | . . . . . . . . . . . . . . . . . . . . . . . . . . . Parts Field Recycled . | . . . . . . . . . . . . . . . . . . . . . . . . . . . Retrieved Matter . | . . . . . . . . . . . . . . . . . . . . . . . . . . . Parts Self-Destructed 7 | . . . . . . . . . . . . 2 . . . . 4 . 1 . . . . . . . Prevented 10 | . . . . . . . . . . . . . . . . . . 2 8 . . . . . . . Kills | -11 -10 -10 -10 -9 -8 -8 -7 -7 -6 -6 -5 -5 -5 -4 -4 -4 -4 -4 -4 -3 -3 -3 -3 -2 -1 -1 ------- Run | Scr Mat Min Exi Min Mat Sto Fac DSF Fac Ext Fac Upp Upp Fac Was Fac Upp Upp War Pro Res Arm Lab Res Acc Com Combat Hostiles Destroyed 18 | . . . . . . . . . . 1 8 7 . . . . . . . . 2 . . . . . Melee 2 | . . . . . . . . . . 1 . . . . . . . . . . 1 . . . . . AOE 16 | . . . . . . . . . . . 8 7 . . . . . . . . 1 . . . . . Classes Destroyed 8 | . . . . . . 1 . . 1 1 3 1 . . . . . . . . 1 . . . . . Worker 3 | . . . . . . . . . . . 1 . . . . 1 . . . . . . . . . 1 Hauler 6 | . . . . . . 1 . . . . . . . . . 2 . . . . . . . 3 . . Operator 2 | . . . . . . . . . 2 . . . . . . . . . . . . . . . . . Swarmer 11 | . . . . . . . . . . . 7 4 . . . . . . . . . . . . . . Cutter 2 | . . . . . . . . . . . . . . . . . . . . . 2 . . . . . Grunt 3 | . . . . . . . . . . 1 . 2 . . . . . . . . . . . . . . Brawler 1 | . . . . . . . . . . . . 1 . . . . . . . . . . . . . . Hunter 1 | . . . . . . . . . . . 1 . . . . . . . . . . . . . . . Best Kill Streak 9 | . . . . . . 1 . . 1 1 9 7 . . . 3 . . . . 2 . . 1 . 1 Combat Bots Only 8 | . . . . . . . . . . 1 8 7 . . . . . . . . 2 . . . . . Max Kills in Single Turn 3 | . . . . . . 1 . . 1 1 3 2 . . . 1 . . . . 1 . . 1 . 1 Gunslinging . | . . . . . . . . . . . . . . . . . . . . . . . . . . . Exploded 3 | . . . . . . . . . . . 3 2 . . . . . . . . 1 . . . . . Melee 1 | . . . . . . . . . . 1 . . . . . . . . . . 1 . . . . . Uniques/NPCs Destroyed . | . . . . . . . . . . . . . . . . . . . . . . . . . . . Combat | -11 -10 -10 -10 -9 -8 -8 -7 -7 -6 -6 -5 -5 -5 -4 -4 -4 -4 -4 -4 -3 -3 -3 -3 -2 -1 -1 -------- Run | Scr Mat Min Exi Min Mat Sto Fac DSF Fac Ext Fac Upp Upp Fac Was Fac Upp Upp War Pro Res Arm Lab Res Acc Com Damage Taken 7771 | . 236 26 . 159 . 62 . 123 363 406 586 1039 . . 150 142 . . 79 57 732 172 . 16 . 3423 Core 3881 | . 53 . . 39 . 12 . 57 237 91 276 668 . . 68 . . . 25 16 202 56 . 16 . 2065 Absorbed by Shields 296 | . . . . . . . . . . 132 27 . . . . . . . . . . . . . . 137 Core Remaining (%) 76 | 100 . . . 63 . 97 . 91 . 61 . . 5 . . . . . . 90 . . 80 98 . . Volleys Fired 17 | . . . . . . . . . . . 8 7 . . . . . . . . 2 . . . . . Largest 1 | . . . . . . . . . . . 1 1 . . . . . . . . 1 . . . . . Hottest 80 | . . . . . . . . . . . 43 43 . . . . . . . . 80 . . . . . Shots Fired 17 | . . . . . . . . . . . 8 7 . . . . . . . . 2 . . . . . Gun . | . . . . . . . . . . . . . . . . . . . . . . . . . . . Cannon . | . . . . . . . . . . . . . . . . . . . . . . . . . . . Launcher 17 | . . . . . . . . . . . 8 7 . . . . . . . . 2 . . . . . Special . | . . . . . . . . . . . . . . . . . . . . . . . . . . . Kinetic . | . . . . . . . . . . . . . . . . . . . . . . . . . . . Thermal . | . . . . . . . . . . . . . . . . . . . . . . . . . . . Explosive 15 | . . . . . . . . . . . 8 7 . . . . . . . . . . . . . . Electromagnetic 2 | . . . . . . . . . . . . . . . . . . . . . 2 . . . . . Robot Hit Streak 7 | . . . . . . . . . . . 6 5 . . . . . . . . 7 . . . . . Robot Miss Streak 2 | . . . . . . . . . . . 1 2 . . . . . . . . 2 . . . . . Penetration Max . | . . . . . . . . . . . . . . . . . . . . . . . . . . . Secondary Targets . | . . . . . . . . . . . . . . . . . . . . . . . . . . . Shots Hit Robots 67 | . . . . . . 1 . . 2 6 6 5 . . . 16 . . . . 4 . . 9 . 18 Core Hits 45 | . . . . . . 1 . . 1 1 16 10 . . . 3 . . . . 5 . . 3 . 5 Critical Kills . | . . . . . . . . . . . . . . . . . . . . . . . . . . . Critical Parts Destroyed . | . . . . . . . . . . . . . . . . . . . . . . . . . . . Critical Strikes 1 | . . . . . . . . . . . . . . . . . . . . . . . . 1 . . Sever 1 | . . . . . . . . . . . . . . . . . . . . . . . . 1 . . Melee Attacks 196 | . . . . . . 5 . . 35 8 3 . . . . 36 . . 1 . 45 6 7 14 12 24 Impact 16 | . . . . . . 5 . . 11 . . . . . . . . . . . . . . . . . Slashing 161 | . . . . . . . . . 24 8 3 . . . . 36 . . 1 . 45 6 7 14 12 5 Piercing . | . . . . . . . . . . . . . . . . . . . . . . . . . . . Entropic 19 | . . . . . . . . . . . . . . . . . . . . . . . . . . 19 Sneak Attacks 8 | . . . . . . 1 . . . . . . . . . 3 . . . . . . . 3 . 1 Combat Hostiles . | . . . . . . . . . . . . . . . . . . . . . . . . . . . Follow-up Attacks 4 | . . . . . . . . . . . . . . . . . . . . . . . . . . 4 Damage Inflicted 6900 | . . . . . . 39 . . 38 299 1088 1451 . . . 1084 . . . . 286 . . 820 . 1795 Guns . | . . . . . . . . . . . . . . . . . . . . . . . . . . . Cannons . | . . . . . . . . . . . . . . . . . . . . . . . . . . . Explosions 2705 | . . . . . . . . . . . 1088 1451 . . . . . . . . 166 . . . . . Melee 4190 | . . . . . . 39 . . 38 299 . . . . . 1084 . . . . 120 . . 820 . 1790 Ramming 5 | . . . . . . . . . . . . . . . . . . . . . . . . . . 5 Kinetic . | . . . . . . . . . . . . . . . . . . . . . . . . . . . Thermal 177 | . . . . . . . . . . . 85 . . . . . . . . . 92 . . . . . Explosive 2428 | . . . . . . . . . . . 977 1451 . . . . . . . . . . . . . . Electromagnetic 100 | . . . . . . . . . . . 26 . . . . . . . . . 74 . . . . . Impact 77 | . . . . . . 39 . . 38 . . . . . . . . . . . . . . . . . Slashing 2590 | . . . . . . . . . . 299 . . . . . 1084 . . . . 120 . . 820 . 267 Piercing . | . . . . . . . . . . . . . . . . . . . . . . . . . . . Entropic 1523 | . . . . . . . . . . . . . . . . . . . . . . . . . . 1523 Highest Corruption 9 | . 1 1 1 1 . . . . 1 1 . 5 5 . . . . . . . 6 7 7 . . 9 Average Corruption 2 | . 1 1 1 1 . . . . 1 1 . 3 5 . . . . . . . 4 6 7 . . 1 Corruption Purged . | . . . . . . . . . . . . . . . . . . . . . . . . . . . Effects 36 | . . 4 1 . . . . . 1 1 . . 1 . . . . . . . 12 7 5 . . 4 Message Errors 10 | . . 1 1 . . . . . 1 . . . . . . . . . . . 3 . 2 . . 2 Matter Fused 7 | . . . . . . . . . . . . . . . . . . . . . 3 1 3 . . . Heat Flow Errors 5 | . . . . . . . . . . . . . . . . . . . . . 3 2 . . . . Energy Discharges 6 | . . 1 . . . . . . . 1 . . . . . . . . . . 1 3 . . . . Data Loss (minor) 7 | . . 2 . . . . . . . . . . . . . . . . . . 2 1 . . . 2 Data Loss (major) 1 | . . . . . . . . . . . . . 1 . . . . . . . . . . . . . Overload Shots . | . . . . . . . . . . . . . . . . . . . . . . . . . . . Overflow Damage 482 | . . . . . . . . . 7 . 101 42 . . . 194 . . . . . . . 111 . 27 Projectiles . | . . . . . . . . . . . . . . . . . . . . . . . . . . . Explosions 143 | . . . . . . . . . . . 101 42 . . . . . . . . . . . . . . Melee 339 | . . . . . . . . . 7 . . . . . . 194 . . . . . . . 111 . 27 Knockbacks 1 | . . . . . . . . . . . . . . . . . . . . . . . . . . 1 Impact 1 | . . . . . . . . . . . . . . . . . . . . . . . . . . 1 Kinetic . | . . . . . . . . . . . . . . . . . . . . . . . . . . . Secondary . | . . . . . . . . . . . . . . . . . . . . . . . . . . . Self-Inflicted Damage 93 | . . . . . . . . . . . 84 . . . . . . . . . 7 . . . . 2 Shots 3 | . . . . . . . . . . . 2 . . . . . . . . . 1 . . . . . Rammed 3 | . . . . . . . . . . . . . . . . . . . . . . . . . . 3 Targets Rammed 3 | . . . . . . . . . . . . . . . . . . . . . . . . . . 3 Kicked . | . . . . . . . . . . . . . . . . . . . . . . . . . . . Crushed . | . . . . . . . . . . . . . . . . . . . . . . . . . . . Highest Temperature 236 | . . . . . . 1 . . . 26 11 1 . . . . . . 67 72 210 236 19 137 4 . Average Temperature 34 | . . . . . . 1 . . . 3 4 1 . . . . . . 21 32 36 66 7 64 4 . Received Heat Transfer 630 | . 87 15 . . . 36 . . . 83 27 243 . . . 27 . . 18 9 63 18 . . . 4 Siege Activations . | . . . . . . . . . . . . . . . . . . . . . . . . . . . Robots Corrupted . | . . . . . . . . . . . . . . . . . . . . . . . . . . . Combat Hostiles . | . . . . . . . . . . . . . . . . . . . . . . . . . . . Parts Fried 3 | . . . . . . . . . 3 . . . . . . . . . . . . . . . . . Impact Corruptions 1 | . . . . . . . . . 1 . . . . . . . . . . . . . . . . . Robots Melted . | . . . . . . . . . . . . . . . . . . . . . . . . . . . Combat Hostiles . | . . . . . . . . . . . . . . . . . . . . . . . . . . . Parts Melted . | . . . . . . . . . . . . . . . . . . . . . . . . . . . Heat Transferred 100 | . . . . . . . . . . . 50 . . . . . . . . . 50 . . . . . Parts Sabotaged . | . . . . . . . . . . . . . . . . . . . . . . . . . . . Parts Stolen . | . . . . . . . . . . . . . . . . . . . . . . . . . . . Parts Stripped . | . . . . . . . . . . . . . . . . . . . . . . . . . . . Power Chain Reactions 2 | . . . . . . . . . . . . . . . . . . . . . 2 . . . . . Missiles Intercepted . | . . . . . . . . . . . . . . . . . . . . . . . . . . . Alert | -11 -10 -10 -10 -9 -8 -8 -7 -7 -6 -6 -5 -5 -5 -4 -4 -4 -4 -4 -4 -3 -3 -3 -3 -2 -1 -1 ------- Run | Scr Mat Min Exi Min Mat Sto Fac DSF Fac Ext Fac Upp Upp Fac Was Fac Upp Upp War Pro Res Arm Lab Res Acc Com Peak Influence 732 | . 60 37 . 32 2 700 309 249 243 373 732 . . 366 142 542 . . . . 370 635 . 261 165 135 Initial 366 | . . 23 . . . . 309 219 125 31 95 . . 366 128 95 . . . . . 183 . . 165 99 Average 188 | . 31 22 . . . 398 309 236 207 205 482 . . 366 134 280 . . . . 178 326 . 102 114 91 Maximum Alert Level 3 | . . . . . . 3 1 1 1 1 3 . . 1 . 2 . . . . 1 2 . 1 . . Low Security (%) 58 | 100 100 100 . 100 100 27 . . 17 52 29 . . . 100 15 . . . . 49 49 . 70 100 100 Level 1 33 | . . . . . . 18 100 100 82 47 3 . . 100 . 75 . . . . 50 14 . 29 . . Level 2 8 | . . . . . . 47 . . . . 63 . . . . 8 . . . . . 35 . . . . Level 3 . | . . . . . . 7 . . . . 3 . . . . . . . . . . . . . . . Level 4 . | . . . . . . . . . . . . . . . . . . . . . . . . . . . Level 5 . | . . . . . . . . . . . . . . . . . . . . . . . . . . . High Security . | . . . . . . . . . . . . . . . . . . . . . . . . . . . Max Security . | . . . . . . . . . . . . . . . . . . . . . . . . . . . Squads Dispatched 36 | . 2 . . . . 4 1 1 1 3 1 . . . . 5 . . . . 10 3 . 1 . 4 Investigation 9 | . 1 . . . . . 1 . 1 1 . . . . . 1 . . . . 2 1 . . . 1 Extermination 4 | . . . . . . . . . . . . . . . . 1 . . . . 1 1 . . . 1 Reinforcement 21 | . 1 . . . . 2 . 1 . 2 1 . . . . 3 . . . . 7 1 . 1 . 2 Assault . | . . . . . . . . . . . . . . . . . . . . . . . . . . . Garrison 2 | . . . . . . 2 . . . . . . . . . . . . . . . . . . . . Intercept . | . . . . . . . . . . . . . . . . . . . . . . . . . . . Construction Impeded 2 | . . . . . . . . . . . 1 . . . . 1 . . . . . . . . . . Haulers Reinforced 1 | . . . . . . . . . . . . . . . . . . . . . . . . 1 . . Active Scanning Responses . | . . . . . . . . . . . . . . . . . . . . . . . . . . . Cargo Convoy Interrupts . | . . . . . . . . . . . . . . . . . . . . . . . . . . . Stealth | -11 -10 -10 -10 -9 -8 -8 -7 -7 -6 -6 -5 -5 -5 -4 -4 -4 -4 -4 -4 -3 -3 -3 -3 -2 -1 -1 --------- Run | Scr Mat Min Exi Min Mat Sto Fac DSF Fac Ext Fac Upp Upp Fac Was Fac Upp Upp War Pro Res Arm Lab Res Acc Com Distress Signals 36 | . 2 . . . . 3 . . . 3 1 . . . . 6 . . . 1 3 3 . 9 2 3 Communications Jammed . | . . . . . . . . . . . . . . . . . . . . . . . . . . . Distress Signals . | . . . . . . . . . . . . . . . . . . . . . . . . . . . Times Spotted 263 | . 13 2 . 2 . 20 . 5 4 26 14 23 . . 1 16 . . 12 6 51 31 . 14 2 21 Peak Tracking Total 24 | . 12 2 . 2 . 7 . 2 1 9 6 18 . . 1 10 . . 12 6 24 24 . 7 6 9 Tactical Retreats 34 | . 1 . . . . 2 . 2 . 4 3 3 . . . 1 . . . . 9 5 . 3 1 . Traps | -11 -10 -10 -10 -9 -8 -8 -7 -7 -6 -6 -5 -5 -5 -4 -4 -4 -4 -4 -4 -3 -3 -3 -3 -2 -1 -1 ------- Run | Scr Mat Min Exi Min Mat Sto Fac DSF Fac Ext Fac Upp Upp Fac Was Fac Upp Upp War Pro Res Arm Lab Res Acc Com Traps Triggered 18 | . 1 . . . . 3 . . 2 3 3 . . 1 . 1 . . . . 3 . . . 1 . Indirectly . | . . . . . . . . . . . . . . . . . . . . . . . . . . . Trap Hack Attempts . | . . . . . . . . . . . . . . . . . . . . . . . . . . . Triggered . | . . . . . . . . . . . . . . . . . . . . . . . . . . . Disarmed . | . . . . . . . . . . . . . . . . . . . . . . . . . . . Reprogrammed . | . . . . . . . . . . . . . . . . . . . . . . . . . . . Reused . | . . . . . . . . . . . . . . . . . . . . . . . . . . . Traps Extracted . | . . . . . . . . . . . . . . . . . . . . . . . . . . . Installed . | . . . . . . . . . . . . . . . . . . . . . . . . . . . Triggered 7 | . . . . . . . . . . . . . . . . . . 2 5 . . . . . . . Machines | -11 -10 -10 -10 -9 -8 -8 -7 -7 -6 -6 -5 -5 -5 -4 -4 -4 -4 -4 -4 -3 -3 -3 -3 -2 -1 -1 ---------- Run | Scr Mat Min Exi Min Mat Sto Fac DSF Fac Ext Fac Upp Upp Fac Was Fac Upp Upp War Pro Res Arm Lab Res Acc Com Machines Disabled 20 | . . . . . . 1 . . . 1 15 . . . . 2 . . . . . . 1 . . . Max in Single Turn 6 | . . . . . . 1 . . . . 6 . . . . . . . . . . . 1 . . . Machines Sabotaged . | . . . . . . . . . . . . . . . . . . . . . . . . . . . Garrisons Compromised . | . . . . . . . . . . . . . . . . . . . . . . . . . . . Overloaded Fab Kills . | . . . . . . . . . . . . . . . . . . . . . . . . . . . Hacking | -11 -10 -10 -10 -9 -8 -8 -7 -7 -6 -6 -5 -5 -5 -4 -4 -4 -4 -4 -4 -3 -3 -3 -3 -2 -1 -1 --------- Run | Scr Mat Min Exi Min Mat Sto Fac DSF Fac Ext Fac Upp Upp Fac Was Fac Upp Upp War Pro Res Arm Lab Res Acc Com Machines Accessed 77 | . 1 . 2 1 1 4 4 . 6 10 2 1 . . . 14 . . 8 1 7 4 . 2 2 7 Terminals 51 | . 1 . . . . 4 3 . 6 8 2 . . . . 10 . . . 1 5 2 . 1 1 7 Fabricators 3 | . . . . . . . . . . . . . . . . 1 . . . . 1 1 . . . . Repair Stations . | . . . . . . . . . . . . . . . . . . . . . . . . . . . Recycling Units 10 | . . . . . . . 1 . . 2 . . . . . 3 . . . . 1 1 . 1 1 . Scanalyzers 1 | . . . . . 1 . . . . . . . . . . . . . . . . . . . . . Garrison Access . | . . . . . . . . . . . . . . . . . . . . . . . . . . . Total Hacks 180 | . 4 . 3 1 2 9 11 . 13 26 5 1 . . . 27 . . 24 1 17 8 . 5 5 18 Successful 108 | . . . 3 1 2 6 5 . 6 8 4 1 . . . 16 . . 24 1 7 6 . 3 5 10 Failed 72 | . 4 . . . . 3 6 . 7 18 1 . . . . 11 . . . . 10 2 . 2 . 8 Catastrophic 14 | . . . . . . 1 . . 2 2 . . . . . 3 . . . . 5 . . . . 1 Database Lockouts . | . . . . . . . . . . . . . . . . . . . . . . . . . . . Manual 30 | . 4 . 1 . . 3 . . 2 8 1 . . . . . . . . . 5 . . . 1 5 Terminals 129 | . 4 . . . . 9 9 . 13 22 5 . . . . 21 . . . 1 14 6 . 3 4 18 Fabricators 5 | . . . . . . . . . . . . . . . . 2 . . . . 2 1 . . . . Repair Stations . | . . . . . . . . . . . . . . . . . . . . . . . . . . . Recycling Units 15 | . . . . . . . 2 . . 4 . . . . . 4 . . . . 1 1 . 2 1 . Scanalyzers 2 | . . . . . 2 . . . . . . . . . . . . . . . . . . . . . Garrison Access . | . . . . . . . . . . . . . . . . . . . . . . . . . . . Terminal Hacks 87 | . . . 3 1 . 4 3 . 5 4 4 1 . . . 12 . . 24 1 5 4 . 2 4 10 Record 15 | . . . 2 . . . . . . . . . . . . . . . 13 . . . . . . . Robot Analysis 1 | . . . . . . . . . 1 . . . . . . . . . . . . . . . . . Prototype ID Bank 10 | . . . . . . . . . . . . . . . . 1 . . 9 . . . . . . . Open Door 13 | . . . . 1 . 2 . . . 4 . 1 . . . . . . 2 1 . 1 . . . 1 Open DSF 5 | . . . . . . . 1 . . . 1 . . . . 2 . . . . 1 . . . . . Branch Access Points 5 | . . . . . . . . . 1 . 1 . . . . 1 . . . . 1 . . . 1 . Emergency Access Points 7 | . . . . . . . . . . . 1 . . . . 2 . . . . . 1 . . . 3 Terminal Index 2 | . . . . . . 1 . . . . . . . . . . . . . . . . . . . 1 Alert Level 1 | . . . . . . . . . . . . . . . . . . . . . 1 . . . . . Unreport Threat 3 | . . . . . . . . . . . . . . . . 1 . . . . . . . . 2 . Locate Traps 9 | . . . . . . 1 . . 1 . . . . . . 2 . . . . 1 1 . 1 . 2 Dispatch Records 1 | . . . . . . . . . . . . . . . . 1 . . . . . . . . . . Patrol Status 1 | . . . . . . . . . . . . . . . . . . . . . 1 . . . . . Transport Status 1 | . . . . . . . . . . . . . . . . 1 . . . . . . . . . . Registered Prototypes 1 | . . . . . . . . . . . . . . . . . . . . . . . . . . 1 Zone Layout 9 | . . . . . . . 2 . 2 . 1 . . . . 1 . . . . . 1 . 1 1 . EX-Prototype ID Bank 1 | . . . 1 . . . . . . . . . . . . . . . . . . . . . . . Disengage Seal 2 | . . . . . . . . . . . . . . . . . . . . . . . . . . 2 Fabricator Hacks 4 | . . . . . . . . . . . . . . . . 2 . . . . 1 1 . . . . Load Schematic 2 | . . . . . . . . . . . . . . . . 1 . . . . 1 . . . . . Build 2 | . . . . . . . . . . . . . . . . 1 . . . . . 1 . . . . Repair Station Hacks . | . . . . . . . . . . . . . . . . . . . . . . . . . . . Recycling Unit Hacks 8 | . . . . . . . 2 . . . . . . . . 2 . . . . 1 1 . 1 1 . Process 1 | . . . . . . . 1 . . . . . . . . . . . . . . . . . . . Retrieve Components 7 | . . . . . . . 1 . . . . . . . . 2 . . . . 1 1 . 1 1 . Scanalyzer 2 | . . . . . 2 . . . . . . . . . . . . . . . . . . . . . Insert Component 1 | . . . . . 1 . . . . . . . . . . . . . . . . . . . . . Analyze 1 | . . . . . 1 . . . . . . . . . . . . . . . . . . . . . Garrison Access Hacks . | . . . . . . . . . . . . . . . . . . . . . . . . . . . Unauthorized Hacks 7 | . . . . . . 2 . . 1 4 . . . . . . . . . . . . . . . . Terminals 7 | . . . . . . 2 . . 1 4 . . . . . . . . . . . . . . . . Track 2 | . . . . . . 1 . . . 1 . . . . . . . . . . . . . . . . Assimilate 1 | . . . . . . . . . 1 . . . . . . . . . . . . . . . . . Botnet 3 | . . . . . . 1 . . . 2 . . . . . . . . . . . . . . . . Disrupt 1 | . . . . . . . . . . 1 . . . . . . . . . . . . . . . . Fabricators . | . . . . . . . . . . . . . . . . . . . . . . . . . . . Repair Stations . | . . . . . . . . . . . . . . . . . . . . . . . . . . . Recycling Units . | . . . . . . . . . . . . . . . . . . . . . . . . . . . Scanalyzers . | . . . . . . . . . . . . . . . . . . . . . . . . . . . Garrison Access . | . . . . . . . . . . . . . . . . . . . . . . . . . . . Data Cores Recovered 1 | . . . . . . . . . 1 . . . . . . . . . . . . . . . . . Used . | . . . . . . . . . . . . . . . . . . . . . . . . . . . Hacking Detections 53 | . 1 . . . 1 4 4 . 5 9 1 . . . . 11 . . . . 5 3 . 1 2 6 Full Trace Events 7 | . 1 . . . . . 1 . 1 1 . . . . . . . . . . 2 1 . . . . Feedback Events 2 | . . . . . . . . . 1 . . . . . . . . . . . 1 . . . . . Corruption 2 | . . . . . . . . . 1 . . . . . . . . . . . 1 . . . . . Feedback Blocked . | . . . . . . . . . . . . . . . . . . . . . . . . . . . Robot Schematics Acquired . | . . . . . . . . . . . . . . . . . . . . . . . . . . . Robots Built 3 | . . . . . . . . . . . . . . . . . . . . . . 3 . . . . Authchips . | . . . . . . . . . . . . . . . . . . . . . . . . . . . Time 62 | . . . . . . . . . . . . . . . . . . . . . . 62 . . . . Total Robot Build Rating 21 | . . . . . . . . . . . . . . . . . . . . . . 21 . . . . Part Schematics Acquired 1 | . . . . . 1 . . . . . . . . . . . . . . . . . . . . . Parts Built 2 | . . . . . . . . . . . . . . . . 2 . . . . . . . . . . Authchips . | . . . . . . . . . . . . . . . . . . . . . . . . . . . Time 73 | . . . . . . . . . . . . . . . . 73 . . . . . . . . . . Total Part Build Rating 6 | . . . . . . . . . . . . . . . . 6 . . . . . . . . . . Parts Repaired . | . . . . . . . . . . . . . . . . . . . . . . . . . . . Time . | . . . . . . . . . . . . . . . . . . . . . . . . . . . Parts Recycled . | . . . . . . . . . . . . . . . . . . . . . . . . . . . Recycled Matter . | . . . . . . . . . . . . . . . . . . . . . . . . . . . Retrieved Matter . | . . . . . . . . . . . . . . . . . . . . . . . . . . . Retrieved Components 21 | . . . . . . . 2 . . . . . . . . 10 . . . . 3 3 . 3 . . Parts Scanalyzed 1 | . . . . . 1 . . . . . . . . . . . . . . . . . . . . . Part Schematics Acquired 1 | . . . . . 1 . . . . . . . . . . . . . . . . . . . . . Parts Damaged . | . . . . . . . . . . . . . . . . . . . . . . . . . . . Bothacking | -11 -10 -10 -10 -9 -8 -8 -7 -7 -6 -6 -5 -5 -5 -4 -4 -4 -4 -4 -4 -3 -3 -3 -3 -2 -1 -1 ------------ Run | Scr Mat Min Exi Min Mat Sto Fac DSF Fac Ext Fac Upp Upp Fac Was Fac Upp Upp War Pro Res Arm Lab Res Acc Com Used RIF Installer . | . . . . . . . . . . . . . . . . . . . . . . . . . . . Robots Hacked . | . . . . . . . . . . . . . . . . . . . . . . . . . . . Non-combat . | . . . . . . . . . . . . . . . . . . . . . . . . . . . Combat . | . . . . . . . . . . . . . . . . . . . . . . . . . . . Robot Hacks Applied . | . . . . . . . . . . . . . . . . . . . . . . . . . . . Relay Couplers Released . | . . . . . . . . . . . . . . . . . . . . . . . . . . . Robots Rewired . | . . . . . . . . . . . . . . . . . . . . . . . . . . . Allies Hacked . | . . . . . . . . . . . . . . . . . . . . . . . . . . . Hacks Repelled 1 | . . . . . . . . . . . . . . . . . . . . . . . . . . 1 Allies | -11 -10 -10 -10 -9 -8 -8 -7 -7 -6 -6 -5 -5 -5 -4 -4 -4 -4 -4 -4 -3 -3 -3 -3 -2 -1 -1 -------- Run | Scr Mat Min Exi Min Mat Sto Fac DSF Fac Ext Fac Upp Upp Fac Was Fac Upp Upp War Pro Res Arm Lab Res Acc Com Total Allies 49 | . . 3 . 1 . 10 . . 1 4 . . . . 20 . . . . . . 3 . . . 7 Largest Group 20 | . . 3 1 2 . 10 . . 1 3 . . . . 20 17 . . . . . 3 . . . 6 Highest-Rated Group 789 | . . 40 16 47 . 173 . . 26 209 . . . . 789 714 . . . . . 144 . . . 87 Highest-Rated Ally 159 | . . 16 16 31 . 29 . . 26 159 . . . . 50 50 . . . . . 48 . . . 15 Total Orders . | . . . . . . . . . . . . . . . . . . . . . . . . . . . Ally Attacks 309 | . . 11 . 3 . 115 . . . 28 . . . . 26 86 . . . . . 24 . . . 16 Total Damage 7593 | . . 98 . 40 . 1411 . . . 1005 . . . . 1269 3083 . . . . . 414 . . . 273 Kills 56 | . . 2 . 1 . 20 . . . 6 . . . . 4 14 . . . . . 7 . . . 2 Allies Corrupted 3 | . . . . . . . . . . . . . . . . 3 . . . . . . . . . . Allies Melted 3 | . . . . . . . . . . 1 . . . . . . . . . . . . . 2 . . Intel | -11 -10 -10 -10 -9 -8 -8 -7 -7 -6 -6 -5 -5 -5 -4 -4 -4 -4 -4 -4 -3 -3 -3 -3 -2 -1 -1 ------- Run | Scr Mat Min Exi Min Mat Sto Fac DSF Fac Ext Fac Upp Upp Fac Was Fac Upp Upp War Pro Res Arm Lab Res Acc Com Robot Analysis Total 1 | . . . . . . . . . 1 . . . . . . . . . . . . . . . . . Derelict Logs Recovered 3 | . . 1 . . . . . . . . . 1 . . . . 1 . . . . . . . . . Drone Launches . | . . . . . . . . . . . . . . . . . . . . . . . . . . . Drone Recoveries . | . . . . . . . . . . . . . . . . . . . . . . . . . . . Exploration | -11 -10 -10 -10 -9 -8 -8 -7 -7 -6 -6 -5 -5 -5 -4 -4 -4 -4 -4 -4 -3 -3 -3 -3 -2 -1 -1 ------------- Run | Scr Mat Min Exi Min Mat Sto Fac DSF Fac Ext Fac Upp Upp Fac Was Fac Upp Upp War Pro Res Arm Lab Res Acc Com Turns Passed 6433 | 19 84 554 228 163 44 295 68 145 414 457 230 237 23 34 194 524 128 87 220 78 631 271 236 320 147 602 Spaces Moved 13092 | 30 156 606 218 167 84 555 252 138 914 845 557 523 45 74 392 1236 394 270 647 274 1468 810 215 1116 450 656 Core 1468 | 30 156 606 218 167 7 . . . . . . 207 45 16 . . . . . . . . . . . 16 Treads . | . . . . . . . . . . . . . . . . . . . . . . . . . . . Legs . | . . . . . . . . . . . . . . . . . . . . . . . . . . . Wheels . | . . . . . . . . . . . . . . . . . . . . . . . . . . . Hover . | . . . . . . . . . . . . . . . . . . . . . . . . . . . Flight 11624 | . . . . . 77 555 252 138 914 845 557 316 . 58 392 1236 394 270 647 274 1468 810 215 1116 450 640 Fastest Speed 23 | 50 50 50 100 50 40 26 26 23 23 23 23 35 50 40 37 32 32 32 28 28 27 23 23 23 24 24 Average Speed 34 | 50 50 88 100 97 40 29 26 50 23 23 28 40 50 42 37 33 32 32 29 28 28 27 25 23 24 27 Slowest Speed 150 | 50 50 100 100 100 50 40 26 112 23 23 35 50 50 50 40 37 32 32 32 28 31 28 26 25 24 150 Overloaded Moves . | . . . . . . . . . . . . . . . . . . . . . . . . . . . Propulsion Burnouts . | . . . . . . . . . . . . . . . . . . . . . . . . . . . Robots Hopped 92 | . . . . . . 7 . 1 6 8 5 4 . . 1 11 3 . 4 . 23 2 . 15 . 2 Cave-ins Triggered 1 | . . . . . . . . . 1 . . . . . . . . . . . . . . . . . Exploration Rate (%) 44 | 4 44 86 61 37 10 69 10 86 16 50 16 75 14 2 97 34 53 52 93 53 35 47 94 43 11 18 Regions Visited 26 Branch Regions 14 Pre-discovered Areas 1 | . . . 1 . . . . . . . . . . . . . . . . . . . . . . . Known Exits Taken 18 | . . . 1 . . 1 1 . 1 1 1 1 1 . . 1 1 1 1 1 1 1 1 1 1 . Unknown Exits Taken 5 | 1 1 1 . 1 1 . . . . . . . . . . . . . . . . . . . . . Scrap Searched 11 | . . 1 . 2 . . . . . . . 1 . . . . . 2 . 5 . . . . . . Spaces Dug 107 | . . . . . . 2 . . 25 . 3 . . . . 15 . . 1 . 37 6 . 5 12 1 Terrain Destroyed 243 | . . . . . . 2 . . 25 . 65 64 . . . 15 . . 1 . 47 6 . 5 12 1 Melee 107 | . . . . . . 2 . . 25 . 3 . . . . 15 . . 1 . 37 6 . 5 12 1 Projectile . | . . . . . . . . . . . . . . . . . . . . . . . . . . . AOE 136 | . . . . . . . . . . . 62 64 . . . . . . . . 10 . . . . . Terrain Rammed . | . . . . . . . . . . . . . . . . . . . . . . . . . . . Walls Destroyed . | . . . . . . . . . . . . . . . . . . . . . . . . . . . Machines Disabled . | . . . . . . . . . . . . . . . . . . . . . . . . . . . Actions | -11 -10 -10 -10 -9 -8 -8 -7 -7 -6 -6 -5 -5 -5 -4 -4 -4 -4 -4 -4 -3 -3 -3 -3 -2 -1 -1 --------- Run | Scr Mat Min Exi Min Mat Sto Fac DSF Fac Ext Fac Upp Upp Fac Was Fac Upp Upp War Pro Res Arm Lab Res Acc Com Total 14672 | 32 160 624 228 166 91 669 253 212 1059 1086 612 533 44 76 433 1293 391 269 672 275 1604 849 391 1136 463 1051 Wait 1143 | . 2 17 10 . . 50 . 65 109 185 10 2 . . 35 29 . . . . 89 20 152 8 . 360 Move 12897 | 29 155 605 217 166 83 540 251 135 901 830 547 515 44 74 389 1213 387 269 640 273 1426 805 214 1088 449 652 Hop 78 | . . . . . . 7 . 1 6 6 4 3 . . 1 11 3 . 2 . 18 2 . 12 . 2 Pick Up 31 | 1 1 1 1 . . 3 . 6 1 . . . . . . 1 . . 6 . 5 . 3 . . 2 Fast Attach 84 | 2 2 1 . . 5 9 1 1 3 2 2 1 . 2 7 6 . . 6 . 8 8 6 7 2 3 Attach 29 | . . . . . 1 . . 3 3 . 4 2 . . . 1 . . 6 . 4 . . . . 5 Detach 8 | . . . . . . . 1 . 1 . 5 . . . . . . . . . . . 1 . . . Swap 13 | . . . . . . 4 . . . . . . . . . 1 1 . . 1 3 2 1 . . . Drop 62 | . . . . . 2 6 . 1 1 1 1 3 . . 1 . . . 11 1 8 6 9 7 . 4 Fire 17 | . . . . . . . . . . . 8 7 . . . . . . . . 2 . . . . . Melee 180 | . . . . . . 5 . . 34 8 3 . . . . 31 . . 1 . 41 6 5 14 12 20 Ram 3 | . . . . . . . . . . . . . . . . . . . . . . . . . . 3 Kick . | . . . . . . . . . . . . . . . . . . . . . . . . . . . Crush . | . . . . . . . . . . . . . . . . . . . . . . . . . . . Escape Stasis 123 | . . . . . . 41 . . . 54 28 . . . . . . . . . . . . . . . Rewire 4 | . . . . . . 4 . . . . . . . . . . . . . . . . . . . . Trap . | . . . . . . . . . . . . . . . . . . . . . . . . . . . Miscellaneous . | . . . . . . . . . . . . . . . . . . . . . . . . . . . Route ------- -11/Scrapyard -10/Materials (discovered 2 exits: [*Mat] / [*Min]) -10/Mines -10/Exiles (discovered 2 exits: *Min x2) -9/Mines (discovered 2 exits: *Mat x2) -8/Materials -8/Storage -7/Factory (discovered 2 exits: Fac / DSF) -7/DSF -6/Factory (discovered 4 exits: Low x2 / *Ext x2) -6/Extension -5/Factory (discovered 3 exits: *Fac / *Upp x2) -5/Upper Caves -5/Upper Caves -4/Factory -4/Waste -4/Factory (discovered 3 exits: *Res / *Upp x2) -4/Upper Caves -4/Upper Caves (discovered 2 exits: *Res / *War) -4/Warlord -3/Proximity Caves -3/Research (discovered 3 exits: *Arm / *Qua x2) -3/Armory -3/Lab -2/Research -1/Access -1/Command History --------- Turn | Location | Event 11 | -11/Scrapyard | Discovered new exit (range 15) 20 | -11/Scrapyard | Entered Materials 84 | -10/Materials | Discovered new exit (range 9) 101 | -10/Materials | Discovered new exit (range 6) 104 | -10/Materials | Entered Mines 120 | -10/Mines | Assisted by bots powering up and referring to "LRC-V3" 311 | -10/Mines | Build established: Mutant 507 | -10/Mines | Deemed a non-threat by the Exiles lab entrance 507 | -10/Mines | Discovered new exit (range 5) 658 | -10/Mines | Entered Exiles 658 | -10/Exiles | Accompanied by 1 ally 659 | -10/Exiles | Identified exit to Mines 683 | -10/Exiles | Met 8R-AWN 699 | -10/Exiles | Met EX-HEX 732 | -10/Exiles | Met EX-BIN 744 | -10/Exiles | Aligned with FarCom system 745 | -10/Exiles | Given EX-Vault access code 769 | -10/Exiles | Opened EX-Vault 776 | -10/Exiles | Found Longsword +1 798 | -10/Exiles | Warned to stay clear of 0b10 Research branches 825 | -10/Exiles | Met EX-DEC 832 | -10/Exiles | Learned location of Zion (-6) 886 | -10/Exiles | Left Exiles lab with Longsword +1 886 | -10/Exiles | Entered Mines 886 | -9/Mines | Accompanied by 1 ally 889 | -9/Mines | Received a Mining Laser from a helpful Derelict 934 | -9/Mines | Met a Derelict who couldn't figure out how to use a Trap Extractor 959 | -9/Mines | Discovered new exit (range 5) 988 | -9/Mines | Discovered new exit (range 12) 1037 | -9/Mines | Assembled infested the area 1049 | -9/Mines | Entered Materials 1049 | -8/Materials | Evolved 4 slots: Propulsion x2, Utility x2 1066 | -8/Materials | Discovered new exit (range 16) 1093 | -8/Materials | Entered Storage 1104 | -8/Storage | Lost 4 parts (3n1u) 1124 | -8/Storage | Assisted by bots powering up and referring to "LRC-V3" 1278 | -8/Storage | Garrison activated, responded to threat 1307 | -8/Storage | Discovered new exit (range 16) 1388 | -8/Storage | Identified exit to Factory 1388 | -8/Storage | Entered Factory 1388 | -7/Factory | Evolved 2 slots: Propulsion x1, Utility x1 1397 | -7/Factory | Discovered new exit (range 15) 1456 | -7/Factory | Identified exit to DSF 1456 | -7/Factory | Entered DSF 1485 | -7/DSF | Additional patrols routed to DSF 1595 | -7/DSF | Discovered new exit (range 15) 1600 | -7/DSF | Identified exit to Factory 1601 | -7/DSF | Entered Factory 1601 | -6/Factory | Evolved 2 slots: Propulsion x1, Utility x1 1809 | -6/Factory | Build established: Sprinter 1918 | -6/Factory | Crushed by falling debris 1941 | -6/Factory | Identified exit to Lower Caves 1941 | -6/Factory | Identified exit to Extension 2015 | -6/Factory | Entered Extension 2067 | -6/Extension | Rescued a captive Derelict 2136 | -6/Extension | Rescued A7 2224 | -6/Extension | Rescued a captive Derelict 2225 | -6/Extension | Rescued a captive Derelict 2420 | -6/Extension | Extracted ID and sensor layout for unrecognized location from A7's data core 2468 | -6/Extension | Spotted B-75 Beast 2472 | -6/Extension | Discovered new exit (range 3) 2472 | -6/Extension | Identified exit to Factory 2472 | -6/Extension | Entered Factory 2472 | -5/Factory | Evolved 2 slots: Power x1, Utility x1 2558 | -5/Factory | Lost 3 parts (2n1w) 2567 | -5/Factory | Identified exit to Upper Caves 2574 | -5/Factory | Destroyed 8 combat bots 2597 | -5/Factory | Discovered new exit (range 8) 2702 | -5/Factory | Entered Upper Caves 2715 | -5/Upper Caves | Learned Factory terminal intel 2805 | -5/Upper Caves | Attracted the attention of an 0b10 outpost 2855 | -5/Upper Caves | Core integrity fell below 50% 2869 | -5/Upper Caves | Destroyed 7 combat bots 2880 | -5/Upper Caves | Lost 4 parts (1p1n1u1w) 2925 | -5/Upper Caves | Core integrity fell below 20% 2935 | -5/Upper Caves | Attracted the attention of an 0b10 checkpoint 2935 | -5/Upper Caves | Discovered new exit (range 9) 2938 | -5/Upper Caves | Identified exit to Upper Caves 2939 | -5/Upper Caves | Entered another Upper Caves area 2952 | -5/Upper Caves | Build established: Mutant 2955 | -5/Upper Caves | Discovered new exit (range 15) 2961 | -5/Upper Caves | Identified exit to Factory 2962 | -5/Upper Caves | Entered Factory 2962 | -4/Factory | Evolved 2 slots: Utility x2 2963 | -4/Factory | Loaded intel: 26 terminal locations 2996 | -4/Factory | Sucked down chute 2996 | -4/Factory | Entered Waste 2997 | -4/Waste | Joined by Warlord forces that had cleared the area 3030 | -4/Waste | A Compactor rumbled back to life 3030 | -4/Waste | Spotted C-40 Crusher 3033 | -4/Waste | Allies destroyed C-40 Crusher 3111 | -4/Waste | Discovered new exit (range 13) 3154 | -4/Waste | Identified exit to Factory 3190 | -4/Waste | Entered Factory 3190 | -4/Factory | Accompanied by 17 allies 3300 | -4/Factory | Discovered new exit (range 7) 3303 | -4/Factory | Identified exit to Research 3394 | -4/Factory | Build established: Scavenger-Mutant 3549 | -4/Factory | Identified exit to Upper Caves 3612 | -4/Factory | Fabricated Lgt. Nuclear Core? 3708 | -4/Factory | Build established: Scavenger-Sprinter 3714 | -4/Factory | Entered Upper Caves 3722 | -4/Upper Caves | Encountered a Warlord checkpoint 3820 | -4/Upper Caves | Discovered new exit (range 5) 3822 | -4/Upper Caves | Identified exit to Upper Caves 3842 | -4/Upper Caves | Entered another Upper Caves area 3852 | -4/Upper Caves | Discovered exit to Research (range 5) 3905 | -4/Upper Caves | Spotted B-86 Titan 3925 | -4/Upper Caves | Discovered new exit (range 15) 3928 | -4/Upper Caves | Identified exit to Warlord 3929 | -4/Upper Caves | Entered Warlord 3941 | -4/Warlord | Discovered new exit (range 15) 3990 | -4/Warlord | Met Warlord 4012 | -4/Warlord | Found Prototype Device 4012 | -4/Warlord | Identified Exp. Phase Shifter 4015 | -4/Warlord | Warlord's base attacked by MAIN.C 4020 | -4/Warlord | Found Prototype Hackware 4022 | -4/Warlord | Found Prototype Device 4022 | -4/Warlord | Identified Exp. Focal Shield 4068 | -4/Warlord | Learned 4 Armory zone layouts 4068 | -4/Warlord | Learned 4 Armory zone layouts 4068 | -4/Warlord | Learned 4 Command zone layouts 4068 | -4/Warlord | Learned Factory repair station intel 4097 | -4/Warlord | Found Prototype Piercing Weapon 4102 | -4/Warlord | Found Prototype Piercing Weapon 4133 | -4/Warlord | Opened side exit 4149 | -4/Warlord | Identified exit to Proximity Caves 4149 | -4/Warlord | Entered Proximity Caves 4163 | -3/Proximity Caves | Attracted the attention of an 0b10 checkpoint 4216 | -3/Proximity Caves | Snuck into a huge 0b10 base via the rear entrance 4227 | -3/Proximity Caves | Entered Research 4227 | -3/Research | Evolved 2 slots: Utility x2 4228 | -3/Research | Identified exit to Quarantine 4235 | -3/Research | Identified Ghost Barrier 4447 | -3/Research | Spotted B-86 Titan 4455 | -3/Research | Found Gamma Bomb Array 4479 | -3/Research | Identified exit to Armory 4787 | -3/Research | Found Prototype Processor 4787 | -3/Research | Identified Exp. Signal Interpreter 4810 | -3/Research | Build established: Hacker-Sprinter 4858 | -3/Research | Entered Armory 4859 | -3/Armory | Identified exit to Lab 4961 | -3/Armory | Fabricated L-61 Swordsman? 5041 | -3/Armory | Spotted B-86 Titan 5129 | -3/Armory | Entered Lab 5129 | -3/Lab | Discovered new exit (range 9) 5131 | -3/Lab | Identified exit to Research 5132 | -3/Lab | Hidden lab's door opened automatically 5132 | -3/Lab | Sensor layout match revealed 5133 | -3/Lab | Gained access to the hidden lab's interior 5172 | -3/Lab | Found Prototype Device 5172 | -3/Lab | Identified AEGIS Remote Shield 5230 | -3/Lab | Found Prototype Hackware 5230 | -3/Lab | Identified Deep Network Scanner 5327 | -3/Lab | Found Alien Artifact 5327 | -3/Lab | Identified Core Reset Matrix 5327 | -3/Lab | Used Core Reset Matrix 5331 | -3/Lab | Sensed 3 artifacts in vicinity 5332 | -3/Lab | Found Transdimensional Reconstructor 5343 | -3/Lab | Found Core Regenerator 5349 | -3/Lab | Discovered exit to Research (range 6) 5365 | -3/Lab | Entered Research 5365 | -2/Research | Warlord forces began assault on 0b10 5365 | -2/Research | Evolved 2 slots: Propulsion x1, Utility x1 5441 | -2/Research | Met up with Warlord 5475 | -2/Research | Research machine network offline 5521 | -2/Research | Found Prototype Slashing Weapon 5521 | -2/Research | Identified Centrium Greatsword 5542 | -2/Research | Build established: Wizard-Sprinter 5648 | -2/Research | Spotted B-90 Cyclops 5682 | -2/Research | Discovered new exit (range 14) 5685 | -2/Research | Identified exit to Access 5685 | -2/Research | Entered Access 5685 | -1/Access | Evolved 2 slots: Utility x2 5709 | -1/Access | Identified exit to Command 5832 | -1/Access | Entered Command 5872 | -1/Command | Disengaged cave seal 5885 | -1/Command | Welcomed Warlord to Command 5988 | -1/Command | Spotted M Guard 5988 | -1/Command | Spotted M Guard 5988 | -1/Command | Spotted Combat Programmer 5988 | -1/Command | Spotted Combat Programmer 6020 | -1/Command | Lost 3 parts (3u) 6082 | -1/Command | Disengaged cave seal 6082 | -1/Command | Derelicts emerged from the dark tunnel 6103 | -1/Command | Lost 3 parts (2n1u) 6106 | -1/Command | All MAIN.C guards destroyed 6336 | -1/Command | Identified Vortex Lance (x2) 6340 | -1/Command | Met MAIN.C 6345 | -1/Command | 0b10 Conduit disabled 6358 | -1/Command | Build established: Hacker-Sprinter 6358 | -1/Command | MAIN.C activated Command garrisons 6413 | -1/Command | Core integrity fell below 50% 6413 | -1/Command | Used Core Regenerator, restored core integrity (+400) 6422 | -1/Command | Emitted hypermatrix ping 6426 | -1/Command | Core integrity fell below 20% 6427 | -1/Command | Assembled emerged from beneath the floor 6434 | -1/Command | Destroyed by MAIN.C with Omega Cannon Last Messages --------------- 06427_ Slug penetrates 0b10 Conduit. 06427_ Slug penetrates P-80 Master. 06427_ P-80 Master destroyed. 06428_ Knocked back. 06428_ as-34429 system corrupted by crushing effect. 06428_ as-34429 destroyed. 06428_ Slug penetrates 0b10 Conduit. 06430_ as-21256 destroyed. 06430_ Acquired Nuclear Pulse Thruster. 06430_ Slug penetrates P-80 Master. 06430_ Slug penetrates as-50804. 06431_ P-80 Master heat spikes uncontrollably. 06431_ Knocked back. 06432_ P-80 Master heat damages core (-11). 06432_ Slug penetrates P-80 Master. 06432_ P-80 Master destroyed. 06433_ Acquired 10 matter. 06433_ as-50804 destroyed. 06434_ Nuclear Pulse Thruster destroyed. 06434_ Imp. Hacking Suite destroyed. Map ----- +----------------------------------------------------+ | ?????????????????????????????????????????????????? | | ?????????????????????????????????????????????????? | | ?????????????????????????????????????????????????? | | ?????????????????????????????????????????????????? | | ?????????????????????????????????????????????????? | | ?????????????????????????????????????????????????? | | ?????????????????????????????????????????????????? | | ?????????????????????????????????????????????????? | | ?????????????????????????????????????????????????? | | ?????????????????????????????????????????????????? | | ?????????????????????????????????????????????????? | | ?????????????????????????????????????????????????? | | ?????????????????????????????????????????????????? | | ?????????????????????????????????????????????????? | | ?????????????????????????????????????????????????? | | ?????????????????????????????????????????????????? | | ?????????????????????????????????????????????????? | | ????????????????????????###??????????????????????? | | ????????????????#########;########???????????????? | | ??????????????""""" """ #???????????????? | | ?????????????? "" #???????????????? | | ???????????????"" "" ################# | | ????????????""""""""""" %/[ ! | | ????????????" " """ =/= [%[= | | ????????????"" """ /p =!%* | | ????????????"" """"" @a [ ################# | | ???????????# " """"" = %= %a% #???????????????? | | ???????????? " "%=a%a% #???????????????? | | ???????????? " " %%%%*=% ""#???????????????? | | ???????????#""""""""" =%M=%% """#???????????????? | | ???????????#"" * %%*=!% """#???????????????? | | ???????????# !%%*= """"#???????????????? | | ???????????# !!p " #???????????????? | | ???????????# " " = " #???????????????? | | ???????????" " "% "" #???????????????? | | ???????????" """ " " """" #???????????????? | | ???????????" " "%" " #???????????????? | | ???????????# """""""" " " #???????????????? | | ???????????# " """ "" """""#???????????????? | | ???????????# """ " " " #???????????????? | | ???????????###?###################???????????????? | | ?????????????????????????????????????????????????? | | ?????????????????????????????????????????????????? | | ?????????????????????????????????????????????????? | | ?????????????????????????????????????????????????? | | ?????????????????????????????????????????????????? | | ?????????????????????????????????????????????????? | | ?????????????????????????????????????????????????? | | ?????????????????????????????????????????????????? | | ?????????????????????????????????????????????????? | +----------------------------------------------------+ Best States ------------- Heat Dissipation 78 Energy Generation 33 Energy Capacity 830 Matter Stores 300 Matter Capacity 300 Sight Range 16 Robot Scan Range 15 Terrain Scan Range 14 Terrain Scan Density 210 Additional Mass Support 16 Armor Coverage 225 Resistance: KI 30 Core Shielding 20 Propulsion Shielding 66 Utility Shielding 66 Phase Shifting 20 Evasion (%) 85 Melee Accuracy 8 Salvage Targeting 3 Offensive Hacking 59 Defensive Hacking 20 Authchip Count 6 Item Schematics ----------------- None Robot Schematics ------------------ None Fabricated ------------ Lgt. Nuclear Core | x2 | -4/Factory L-61 Swordsman | x3 | -3/Armory | Preloaded Alien Tech Used ----------------- Core Reset Matrix Core Regenerator Achievements -------------- None Challenges ------------ None Game ------ Seed FieldDecoderSheargun Manual? 0 Play Time 02:34:32 Cumulative 618.9 hours Start 2021.10.22 @ 23:55:25 End 2021.10.26 @ 13:19:02 Sessions 9 Manual Loads 0 Difficulty Rogue Special Mode None Game No. 475 Rogue 475 Adventurer 0 Explorer 0 Win Type - Total 159 Types 90/9/43/6/3/2/4/1/1 Lore% 94 Gallery% 94 Achievement% 84 Wizard Run 0 Options --------- ASCII 1 Keyboard 0 Movement Vi Keybinds 0 Fullscreen 1 Font 16/Smallcaps Map View 184x79 Tactical HUD 1 Map Filters NONE Filters NONE Steam 1 RUN: ea52a75e-1578-46b5-a8a9-2e9c69f7f265